Workbook

Sheet SM-sarja
B1: Pekka Lehtonen | E1: 10.3.1947 Jyväskylä
B2: MESTARUUSSARJA | E2: Runkosarja | I2: Kärkilyönnit (KL), pesänvälit | P2: Runkosarja TOP-30 | U2: Ylempi loppusarja | AB2: Alempi loppusarja | AI2: Arvo-ottelut | AM2: Mitalit
B3: Vuosi | C3: Sija | D3: Seura | E3: OTT | F3: KUN | G3: LÖI | H3: TOI | I3: KL | J3: 0 > 1 | K3: 1 > 2 | L3: 2 > 3 | M3: 3 > k | N3: KL-% | P3: LÖI | Q3: TOI | R3: L+T | S3: KL | U3: OTT | V3: KUN | W3: LÖI | X3: TOI | Y3: KL | Z3: KL-% | AB3: OTT | AC3: KUN | AD3: LÖI | AE3: TOI | AF3: KL | AG3: KL-% | AI3: IL | AJ3: LL | AK3: Cup | AL3: K | AM3: H | AN3: P
B4: 1971 | C4: 1. | D4: Lohi | F4: suomensarja
B5: 1972 | C5: 8. | D5: Lohi | E5: 22 | F5: 0 | G5: 11 | H5: 8
B6: 1973 | C6: 11. | D6: Lohi | E6: 22 | F6: 0 | G6: 4 | H6: 5
B7: 1974 | C7: 1. | D7: Lohi | F7: suomensarja
B8: 1975 | C8: 11. | D8: Lohi | E8: 22 | F8: 0 | G8: 11 | H8: 5 | AJ8: 1
B9: 1976 | C9: 1. | D9: Lohi | F9: suomensarja
B10: 1977 | C10: 10. | D10: Lohi | E10: 22 | F10: 0 | G10: 11 | H10: 5 | I10: 101 | J10: 36 | K10: 30 | L10: 24 | M10: 11 | N10: ----
B11: 1978 | C11: 1. | D11: Lohi | F11: suomensarja
B12: 1979 | C12: 9. | D12: Lohi | E12: 22 | F12: 0 | G12: 15 | H12: 1 | I12: 116 | J12: 31 | K12: 35 | L12: 35 | M12: 15 | N12: ---- | S12: 14. | AB12: 6 | AC12: 0 | AD12: 6 | AE12: 2 | AF12: 27 | AG12: ----
B13: 1980 | C13: 10. | D13: Lohi | E13: 22 | F13: 0 | G13: 9 | H13: 1 | I13: 95 | J13: 27 | K13: 23 | L13: 36 | M13: 9 | N13: 54.3 % | AA13: 175 | AH13: 175
B14: 1981 | C14: 2. | D14: Lohi | F14: ykkössarja | AA14: 0 | AH14: 0
B15: 1982 | C15: 10. | D15: Lohi | E15: 22 | F15: 0 | G15: 15 | H15: 5 | I15: 110 | J15: 27 | K15: 24 | L15: 44 | M15: 15 | N15: 57.6 % | S15: 21. | AA15: 191 | AB15: 6 | AC15: 0 | AD15: 2 | AE15: 2 | AF15: 20 | AG15: 51.3 % | AH15: 191
B16: 1983 | C16: 11. | D16: Lohi | F16: ykkössarja | AA16: 0 | AH16: 0
B17: Yhteensä | E17: 154 | F17: 0 | G17: 76 | H17: 30 | I17: 422 | J17: 121 | K17: 112 | L17: 139 | M17: 50 | N17: 56.0 % | P17: 0-0-0 | Q17: 0-0-0 | R17: 0-0-0 | S17: 0-0-0 | U17: 0 | V17: 0 | W17: 0 | X17: 0 | Y17: 0 | Z17: 0.0 % | AA17: 366 | AB17: 12 | AC17: 0 | AD17: 8 | AE17: 4 | AF17: 47 | AG17: 51.3 % | AH17: 366 | AI17: 0 | AJ17: 1 | AK17: 0 | AL17: 0 | AM17: 0 | AN17: 0
B18: Pesispörssi | D18: 335.7
B20: URA SM-SARJASSA | E20: OTT | F20: KUN | G20: LÖI | H20: TOI | I20: KL | K20: ka/L | L20: ka/T | M20: ka/KL | N20: KL-% | P20: ENSIMMÄISET RUNKOSARJASSA
B21: Runkosarja | E21: 154 | F21: 0 | G21: 76 | H21: 30 | I21: 422 | K21: 0.49 | L21: 0.19 | M21: 4.80 | N21: 56.0 % | P21: Ottelu | R21: 07.05. 1972 LP - Lohi 6-2 | X21: 1. ottelu | AA21: 25 v 1 kk 27 pv
B22: Ylempi loppusarja | P22: Lyöty | R22: 07.05. 1972 LP - Lohi 6-2 | X22: 1. ottelu | AA22: 25 v 1 kk 27 pv
B23: Alempi loppusarja | E23: 12 | F23: 0 | G23: 8 | H23: 4 | I23: 47 | K23: 0.67 | L23: 0.33 | M23: 3.92 | N23: 51.3 % | P23: Tuotu | R23: 14.05. 1972 Lohi - RPL 5-2 | X23: 3. ottelu | AA23: 25 v 2 kk 4 pv
B24: KAIKKI | E24: 166 | F24: 0 | G24: 84 | H24: 34 | I24: 469 | K24: 0.51 | L24: 0.20 | M24: 4.69 | N24: 55.0 % | P24: Kunnari
B26: Seurat | D26: Lohi = Jyväskylän Lohi (1924)

Sheet MYP
B1: Pekka Lehtonen | E1: 10.3.1947 Jyväskylä
B2: YKKÖSPESIS | E2: Runkosarja | L2: Runkosarja TOP-10 | Q2: Jatkosarjat | X2: SUOMENSARJA | AA2: Runkosarja | AH2: Runkosarja TOP-10 | AM2: Jatkosarjat
B3: Vuosi | C3: Sija | D3: Seura | E3: OTT | F3: KUN | G3: LÖI | H3: TOI | I3: KL | J3: KL-% | L3: LÖI | M3: TOI | N3: L+T | O3: KL | Q3: OTT | R3: KUN | S3: LÖI | T3: TOI | U3: KL | V3: KL-% | X3: Vuosi | Y3: Sija | Z3: Seura | AA3: OTT | AB3: KUN | AC3: LÖI | AD3: TOI | AE3: KL | AF3: KL-% | AH3: LÖI | AI3: TOI | AJ3: L+T | AK3: KL | AM3: OTT | AN3: KUN | AO3: LÖI | AP3: TOI | AQ3: KL | AR3: KL-%
X4: 1971 | Y4: 1. | Z4: Lohi
X6: 1974 | Y6: 1. | Z6: Lohi
X8: 1976 | Y8: 1. | Z8: Lohi
X10: 1978 | Y10: 1. | Z10: Lohi
B12: 1981 | C12: 2. | D12: Lohi | E12: 10 | F12: 0 | G12: 8 | H12: 4 | Q12: 9 | R12: 0 | S12: 4 | T12: 2
B14: 1983 | C14: 11. | D14: Lohi | E14: 10 | F14: 0 | G14: 1 | H14: 2 | Q14: 10 | R14: 0 | S14: 3 | T14: 1
B15: YHTEENSÄ | E15: =SUM(E6:E14) -> 20 | F15: =SUM(F6:F14) -> 0 | G15: =SUM(G6:G14) -> 9 | H15: =SUM(H6:H14) -> 6 | I15: =SUM(I6:I14) -> 0 | J15: 0.0 % | K15: =SUM(K6:K14) -> 0 | Q15: =SUM(Q6:Q14) -> 19 | R15: =SUM(R6:R14) -> 0 | S15: =SUM(S6:S14) -> 7 | T15: =SUM(T6:T14) -> 3 | U15: =SUM(U6:U14) -> 0 | V15: 0.0 % | W15: =SUM(W6:W14) -> 0 | X15: YHTEENSÄ | AA15: =SUM(AA6:AA14) -> 0 | AB15: =SUM(AB6:AB14) -> 0 | AC15: =SUM(AC6:AC14) -> 0 | AD15: =SUM(AD6:AD14) -> 0 | AE15: =SUM(AE6:AE14) -> 0 | AF15: 0.0 % | AG15: =SUM(AG6:AG14) -> 0 | AM15: =SUM(AM6:AM14) -> 0 | AN15: =SUM(AN6:AN14) -> 0 | AO15: =SUM(AO6:AO14) -> 0 | AP15: =SUM(AP6:AP14) -> 0 | AQ15: =SUM(AQ6:AQ14) -> 0 | AR15: 0.0 % | AS15: =SUM(AS6:AS14) -> 0
B17: KAIKKI OTTELUT | E17: OTT | F17: KUN | G17: LÖI | H17: TOI | I17: KL | J17: KL-% | L17: ka/L | M17: ka/T | N17: ka/l+t | O17: ka/kl | R17: Seurat | T17: Lohi = Jyväskylän Lohi (1924)
B18: SUPERPESIS | E18: 166 | F18: 0 | G18: 84 | H18: 34 | I18: 469 | J18: 55.0 % | K18: =PRODUCT(I18/J18) -> 852.7272727 | L18: =PRODUCT((F18+G18)/E18) -> 0.51 | M18: =PRODUCT(H18/E18) -> 0.20 | N18: =PRODUCT((F18+G18+H18)/E18) -> 0.71 | O18: =PRODUCT(I18/E18) -> 2.83
B19: YKKÖSPESIS | E19: =PRODUCT(E15+Q15) -> 39 | F19: =PRODUCT(F15+R15) -> 0 | G19: =PRODUCT(G15+S15) -> 16 | H19: =PRODUCT(H15+T15) -> 9 | I19: =PRODUCT(I15+U15) -> 0 | J19: 0.0 % | K19: 0 | L19: 0.00 | M19: 0.00 | N19: 0.00 | O19: 0.00
B20: SUOMENSARJA | E20: =PRODUCT(AA15+AM15) -> 0 | F20: =PRODUCT(AB15+AN15) -> 0 | G20: =PRODUCT(AC15+AO15) -> 0 | H20: =PRODUCT(AD15+AP15) -> 0 | I20: =PRODUCT(AE15+AQ15) -> 0 | J20: 0.0 % | K20: 0 | L20: 0.00 | M20: 0.00 | N20: 0.00 | O20: 0.00
B21: YHTEENSÄ | E21: =SUM(E18:E20) -> 205 | F21: =SUM(F18:F20) -> 0 | G21: 100 | H21: 43 | I21: 469 | J21: 0.0 % | K21: =SUM(K18:K20) -> 852.7272727 | L21: =PRODUCT((F21+G21)/E21) -> 0.49 | M21: =PRODUCT(H21/E21) -> 0.21 | N21: =PRODUCT((F21+G21+H21)/E21) -> 0.70 | O21: 2.83

Sheet Arvo-ottelut
B1: LIITTO - LEHDISTÖ - KORTTI
B2: Pekka Lehtonen | C2: 10.3.1947 Jyväskylä
B3: MIEHET | C3: Tulos | D3: Joukkue | E3: Seura | G3: V | H3: T | I3: H | J3: Up. | K3: Lj. | L3: Palk. | M3: O | N3: K | O3: L | P3: T | Q3: KL | R3: 1 | S3: 2 | T3: 3 | U3: k | V3: KL-% | W3: Pelinjohtaja | X3: Yleisöä
B4: 18.06. 1975 Hippos, Jyväskylä | C4: 3-5 | D4: Lehdistö | E4: Lohi | G4: 1 | K4: vai | M4: 1 | W4: Martti Kylmälahti | X4: 1244
B5: Ikä ensimmäisessä ottelussa | C5: 28 v 3 kk 8 pv

Sheet Kärkilyönnit
B1: KÄRKILYÖNNIT RUNKOSARJASSA | V1: VUOSITTAISET SIJOITUKSET TOP - 30
G2: 0 > 1 | J2: 1 > 2 | M2: 2 > 3 | P2: 3 > k | S2: Yhteensä
B3: Vuosi | C3: Sija | D3: Seura | E3: OTT | F3: KL | G3: YHT | H3: % | I3: KL | J3: YHT | K3: % | L3: KL | M3: YHT | N3: % | O3: KL | P3: YHT | Q3: % | R3: KL | S3: YHT | T3: % | V3: Vuosi | W3: Sija | X3: Seura | Y3: 0 > 1 | Z3: 1 > 2 | AA3: 2 > 3 | AB3: 3 > k | AC3: KL
B4: 1980 | C4: 11. | D4: Lohi | E4: 22 | F4: 27 | G4: =PRODUCT(F4/H4) -> 42 | H4: 65.0 % | I4: 23 | J4: =PRODUCT(I4/K4) -> 52 | K4: 44.4 % | L4: 36 | M4: =PRODUCT(L4/N4) -> 55 | N4: 65.0 % | O4: 9 | P4: =PRODUCT(O4/Q4) -> 27 | Q4: 33.3 % | R4: 95 | S4: =PRODUCT(G4+J4+M4+P4) -> 176 | T4: 54.3 % | V4: 1980 | W4: 11. | X4: Lohi
B5: 1981 | V5: 1981
B6: 1982 | C6: 9. | D6: Lohi | E6: 22 | F6: 27 | G6: 48 | H6: =PRODUCT(F6/G6) -> 56.3 % | I6: 24 | J6: 49 | K6: =PRODUCT(I6/J6) -> 49.0 % | L6: 44 | M6: 62 | N6: =PRODUCT(L6/M6) -> 71.0 % | O6: 15 | P6: 32 | Q6: =PRODUCT(O6/P6) -> 46.9 % | R6: 110 | S6: =PRODUCT(G6+J6+M6+P6) -> 191 | T6: =PRODUCT(R6/S6) -> 57.6 % | V6: 1982 | W6: 9. | X6: Lohi | AB6: 21.
B7: Yhteensä | E7: =SUM(E4:E6) -> 44 | F7: =SUM(F4:F6) -> 54 | G7: =SUM(G4:G6) -> 90 | H7: =PRODUCT(F7/G7) -> 60.3 % | I7: =SUM(I4:I6) -> 47 | J7: =SUM(J4:J6) -> 101 | K7: =PRODUCT(I7/J7) -> 46.7 % | L7: =SUM(L4:L6) -> 80 | M7: =SUM(M4:M6) -> 117 | N7: =PRODUCT(L7/M7) -> 68.2 % | O7: =SUM(O4:O6) -> 24 | P7: =SUM(P4:P6) -> 59 | Q7: =PRODUCT(O7/P7) -> 40.7 % | R7: =SUM(R4:R6) -> 205 | S7: =SUM(S4:S6) -> 367 | T7: 56.0 %
